bitfinex/quotes_BTCUSD_20250927
["timestamp","ask_amount","ask_price","bid_price","bid_amount"]
[1758964268676,1.37029302,109510.0,109500.0,0.57983944]
[1758964269363,1.37029302,109510.0,109500.0,0.57475944]
[1758964269637,1.37092518,109510.0,109500.0,0.57475944]
[1758964270432,1.37030472,109510.0,109500.0,0.57475944]
[1758964271723,1.45901619,109510.0,109500.0,0.57475944]
[1758964275745,1.47581802,109510.0,109500.0,0.57475944]
[1758964275952,1.46148941,109510.0,109500.0,0.57475944]
[1758964276196,1.46149358,109510.0,109500.0,0.57475944]
[1758964278133,1.43613845,109510.0,109500.0,0.57475944]
[1758964279019,1.45046774,109510.0,109500.0,0.57475944]
[1758964282524,1.75699815,109510.0,109500.0,0.57475944]
[1758964286681,1.75699377,109510.0,109500.0,0.57475944]
[1758964294705,1.45046336,109510.0,109500.0,0.57475944]
[1758964295545,1.45046336,109510.0,109500.0,0.57675944]
[1758964295546,1.36175189,109510.0,109500.0,0.57675944]
[1758964295745,1.36175189,109510.0,109500.0,0.57995944]
[1758964300943,1.02175189,109510.0,109500.0,0.57995944]
[1758964302909,1.36175189,109510.0,109500.0,0.57995944]
[1758964312559,1.36175624,109510.0,109500.0,0.57995944]
[1758964313182,1.05522583,109510.0,109500.0,0.57995944]
[1758964313381,1.36175624,109510.0,109500.0,0.57995944]
[1758964318228,1.05522583,109510.0,109500.0,0.57995944]
[1758964318434,0.97739624,109510.0,109500.0,0.57995944]
[1758964318684,1.36059624,109510.0,109500.0,0.57995944]
[1758964318893,1.44930771,109510.0,109500.0,0.57995944]
[1758964319333,1.36059624,109510.0,109500.0,0.57995944]
[1758964319672,0.97739624,109510.0,109500.0,0.57995944]
[1758964320030,1.36123624,109510.0,109500.0,0.57995944]
[1758964320666,1.26603624,109510.0,109500.0,0.57995944]
[1758964320902,1.36123624,109510.0,109500.0,0.57995944]
[1758964321503,0.97739624,109510.0,109500.0,0.57995944]
[1758964322293,1.36119624,109510.0,109500.0,0.57995944]
[1758964322448,0.97739624,109510.0,109500.0,0.57995944]
[1758964322659,1.36115624,109510.0,109500.0,0.57995944]
[1758964323493,1.36111624,109510.0,109500.0,0.57995944]
[1758964323870,0.97739624,109510.0,109500.0,0.57995944]
[1758964324327,1.36107624,109510.0,109500.0,0.57995944]
[1758964325661,1.15716664,109510.0,109500.0,0.57995944]
[1758964325865,1.33979836,109510.0,109500.0,0.57995944]
[1758964326515,0.95611836,109510.0,109500.0,0.57995944]
[1758964326734,1.33979836,109510.0,109500.0,0.57995944]
[1758964328164,1.33971788,109510.0,109500.0,0.57995944]
[1758964329089,1.24447788,109510.0,109500.0,0.57995944]
[1758964329289,1.33967788,109510.0,109500.0,0.57995944]
[1758964329719,1.42838935,109510.0,109500.0,0.57995944]
[1758964330158,1.42838935,109510.0,109500.0,0.57475944]
[1758964330605,1.81175448,109510.0,109500.0,0.57475944]
[1758964336277,1.81175448,109510.0,109500.0,0.57980944]
[1758964336704,1.12185894,109510.0,109500.0,0.57980944]
[1758964336911,1.81175448,109510.0,109500.0,0.57980944]
[1758964337758,1.42819448,109510.0,109500.0,0.57475944]
[1758964338223,1.71651448,109510.0,109500.0,0.57475944]
[1758964338465,1.81171448,109510.0,109500.0,0.57475944]
[1758964338662,1.71651448,109510.0,109500.0,0.57681944]
[1758964338899,1.81171448,109510.0,109500.0,0.57980944]
[1758964339184,1.81167448,109510.0,109500.0,0.57980944]
[1758964339680,1.43675183,109510.0,109500.0,0.57980944]
[1758964339889,1.82023183,109510.0,109500.0,0.57980944]
[1758964340529,1.43675183,109510.0,109500.0,0.57980944]
[1758964340739,1.82015183,109510.0,109500.0,0.57980944]
[1758964341157,1.43675183,109510.0,109500.0,0.57980944]
[1758964341595,1.82015183,109510.0,109500.0,0.57980944]
[1758964342574,1.43675183,109510.0,109500.0,0.57980944]
[1758964342784,1.43675111,109510.0,109500.0,0.57980944]
[1758964343427,1.82007111,109510.0,109500.0,0.57980944]
[1758964344482,1.34803964,109510.0,109500.0,0.57980944]
[1758964344703,1.73131964,109510.0,109500.0,0.57980944]
[1758964349403,1.52670183,109510.0,109500.0,0.57980944]
[1758964349657,6.5410311,109510.0,109500.0,0.57980944]
[1758964349874,6.56852099,109510.0,109500.0,0.57980944]
[1758964350069,6.55419172,109510.0,109500.0,0.57980944]
[1758964350289,6.45891172,109510.0,109500.0,0.57980944]
[1758964350423,6.55411172,109510.0,109500.0,0.57980944]
[1758964351840,6.17091172,109510.0,109500.0,0.57980944]
[1758964352067,6.55411172,109510.0,109500.0,0.57980944]
[1758964352468,6.64282319,109510.0,109500.0,0.57980944]
[1758964352710,6.65715246,109510.0,109500.0,0.57980944]
[1758964353719,6.65715263,109510.0,109500.0,0.57681944]
[1758964355327,6.65715263,109510.0,109500.0,0.57983944]
[1758964362411,6.27395263,109510.0,109500.0,0.57983944]
[1758964362718,6.65715263,109510.0,109500.0,0.57983944]
[1758964363269,6.27395263,109510.0,109500.0,0.57983944]
[1758964363478,6.56844116,109510.0,109500.0,0.57983944]
[1758964363887,6.18524116,109510.0,109500.0,0.57983944]
[1758964364142,6.56844116,109510.0,109500.0,0.57983944]
[1758964365156,6.56840116,109510.0,109500.0,0.57983944]
[1758964365773,6.18524116,109510.0,109500.0,0.57983944]
[1758964365986,6.56840116,109510.0,109500.0,0.57983944]
[1758964367807,6.55984379,109510.0,109500.0,0.57983944]
[1758964368000,6.3926358,109510.0,109500.0,0.57681944]
[1758964369760,6.3926358,109510.0,109500.0,0.57475944]
[1758964369938,6.7326358,109510.0,109500.0,0.57475944]
[1758964370930,6.73263882,109510.0,109500.0,0.57475944]
[1758964371341,6.54639732,109510.0,109500.0,0.57475944]
[1758964371525,6.72902904,109510.0,109500.0,0.57475944]
[1758964372595,7.41892458,109510.0,109500.0,0.57475944]
[1758964377321,8.41892458,109510.0,109500.0,0.57475944]
[1758964378679,8.41892458,109510.0,109500.0,0.57680944]
[1758964378931,8.41892458,109510.0,109500.0,0.57982944]
[1758964379311,6.95403181,109510.0,109500.0,0.57982944]
[1758964379523,7.26076735,109510.0,109500.0,0.57982944]
[1758964379764,7.64392735,109510.0,109500.0,0.57982944]
[1758964382604,7.65248715,109510.0,109500.0,0.57982944]
[1758964383452,6.96259161,109510.0,109500.0,0.57982944]
[1758964383658,7.65248715,109510.0,109500.0,0.57680944]
[1758964383898,7.74119862,109510.0,109500.0,0.57680944]
[1758964385661,7.74119862,109510.0,109500.0,0.57982944]
[1758964386432,7.35803862,109510.0,109500.0,0.57982944]
[1758964386824,7.54314462,109510.0,109500.0,0.57982944]
[1758964388504,7.45443315,109510.0,109500.0,0.57982944]
[1758964390854,7.37783491,109510.0,109500.0,0.57982944]
[1758964392653,7.20475599,109510.0,109500.0,0.57982944]
[1758964393085,7.23224588,109510.0,109500.0,0.57982944]
[1758964395260,7.23224394,109510.0,109500.0,0.57982944]
[1758964395459,6.93992426,109510.0,109500.0,0.57982944]
[1758964395767,7.02863573,109510.0,109500.0,0.57982944]
[1758964396435,6.33886708,109510.0,109500.0,0.57982944]
[1758964396632,6.93992426,109510.0,109500.0,0.57982944]
[1758964402102,6.72760817,109510.0,109500.0,0.57982944]
[1758964402470,7.03425682,109510.0,109500.0,0.57982944]
[1758964403493,7.03141174,109510.0,109500.0,0.57982944]
[1758964404185,7.37141174,109510.0,109500.0,0.57982944]
[1758964404398,6.75811444,109510.0,109500.0,0.57982944]
[1758964404545,7.37141174,109510.0,109500.0,0.57982944]
[1758964404949,7.06476309,109510.0,109500.0,0.57982944]
[1758964407435,6.68164309,109510.0,109500.0,0.57982944]
[1758964407583,7.06476309,109510.0,109500.0,0.57982944]
[1758964410465,7.15347456,109510.0,109500.0,0.57982944]
[1758964412513,7.46012321,109510.0,109500.0,0.57982944]
[1758964412720,7.37141174,109510.0,109500.0,0.57982944]
[1758964413873,7.35708277,109510.0,109500.0,0.57982944]
[1758964414056,7.36349965,109510.0,109500.0,0.57982944]
[1758964416905,7.07118007,109510.0,109500.0,0.57982944]
[1758964419910,7.07118007,109510.0,109500.0,0.57680944]
[1758964420087,7.15989154,109510.0,109500.0,0.57680944]
[1758964420496,7.46654019,109510.0,109500.0,0.57680944]
[1758964420904,7.4665375,109510.0,109500.0,0.57680944]
[1758964421262,7.15988885,109510.0,109500.0,0.57680944]
[1758964423951,7.15988885,109510.0,109500.0,0.57475944]
[1758964424801,6.65988885,109510.0,109500.0,0.57475944]
[1758964426097,6.3532402,109510.0,109500.0,0.57688944]
[1758964426316,6.65988885,109510.0,109500.0,0.57475944]
[1758964430547,6.47725713,109510.0,109500.0,0.57475944]
[1758964430754,6.47725713,109510.0,109500.0,0.57991944]
[1758964432059,6.47725713,109510.0,109500.0,0.57683944]
[1758964433702,6.47725642,109510.0,109500.0,0.57683944]
[1758964437820,6.47725642,109510.0,109500.0,0.57475944]
[1758964438079,6.4940568,109510.0,109500.0,0.57475944]
[1758964440558,6.2798868,109510.0,109500.0,0.57475944]
[1758964441201,5.91239691,109510.0,109500.0,0.57475944]
[1758964441408,5.93988772,109510.0,109500.0,0.57475944]
[1758964442919,5.93988772,109510.0,109500.0,0.52975944]
[1758964443143,6.27988772,109510.0,109500.0,0.52975944]
[1758964444819,6.25453259,109510.0,109500.0,0.52975944]
[1758964450974,6.25453259,109510.0,109500.0,0.48475944]
[1758964451423,6.25453259,109510.0,109500.0,0.48682944]
[1758964452711,6.63784413,109510.0,109500.0,0.48682944]
[1758964453507,6.63784108,109510.0,109500.0,0.48682944]
[1758964458341,6.63776108,109510.0,109500.0,0.44182944]
[1758964459112,6.25472108,109510.0,109500.0,0.44182944]
[1758964459317,6.63776108,109510.0,109500.0,0.44478944]
[1758964461481,6.25472108,109510.0,109500.0,0.44478944]
[1758964461662,6.54904961,109510.0,109500.0,0.44478944]
[1758964463458,6.45384961,109510.0,109500.0,0.44478944]
[1758964463658,6.54904961,109510.0,109500.0,0.44478944]
[1758964463964,6.16600961,109510.0,109500.0,0.44478944]
[1758964464299,6.54904961,109510.0,109500.0,0.44478944]
[1758964465047,6.56584848,109510.0,109500.0,0.44478944]
[1758964465701,6.56584848,109510.0,109500.0,0.39978944]
[1758964469657,6.57440534,109510.0,109500.0,0.39978944]
[1758964469829,6.57436534,109510.0,109500.0,0.39978944]
[1758964472947,6.19136534,109510.0,109500.0,0.39978944]
[1758964473148,6.57436534,109510.0,109500.0,0.39978944]
[1758964473934,6.57436534,109510.0,109500.0,0.39682944]
[1758964474583,6.57436534,109510.0,109500.0,0.39980944]
[1758964474755,6.57436534,109510.0,109500.0,0.39682944]
[1758964475381,6.57436722,109510.0,109500.0,0.39682944]
[1758964475687,6.57436722,109510.0,109500.0,0.39980944]
[1758964475903,6.57436722,109510.0,109500.0,0.39475944]
[1758964477195,6.57436722,109510.0,109500.0,0.39681944]
[1758964477398,6.57436722,109510.0,109500.0,0.39979944]
[1758964477991,6.57436722,109510.0,109500.0,0.39681944]
[1758964479511,6.57436612,109510.0,109500.0,0.39681944]
[1758964480990,6.57436612,109510.0,109500.0,0.39979944]
[1758964482754,6.57436612,109510.0,109500.0,0.39475944]
[1758964484275,6.57436612,109510.0,109500.0,0.39979944]
[1758964485310,6.55756725,109510.0,109500.0,0.39979944]
[1758964489130,6.55756725,109510.0,109500.0,0.39681944]
[1758964489526,6.55756725,109510.0,109500.0,0.39475944]
[1758964498638,6.74019897,109510.0,109500.0,0.39475944]
[1758964499055,6.73164448,109510.0,109500.0,0.39475944]
[1758964499460,6.82035595,109510.0,109500.0,0.39475944]
[1758964503175,6.82035595,109510.0,109500.0,0.34975944]
[1758964506373,6.82035595,109510.0,109500.0,0.35478944]
[1758964507863,6.82101068,109510.0,109500.0,0.35180944]
[1758964508087,6.82035595,109510.0,109500.0,0.35180944]
[1758964509574,6.82027595,109510.0,109500.0,0.35480944]
[1758964511278,6.82027595,109510.0,109500.0,0.30475944]
[1758964512725,6.43695367,109510.0,109500.0,0.30670944]
[1758964512955,6.26690096,109510.0,109500.0,0.30670944]
[1758964513138,6.28123041,109510.0,109500.0,0.30670944]
[1758964513949,6.28123041,109510.0,109500.0,0.30970944]
[1758964514248,6.28165623,109510.0,109500.0,0.30970944]
[1758964516599,6.11507861,109510.0,109500.0,0.30970944]
[1758964518254,6.12363076,109510.0,109500.0,0.30970944]
[1758964518674,6.12363076,109510.0,109500.0,0.26470944]
[1758964520136,6.12363076,109510.0,109500.0,0.26170944]
[1758964521022,6.12363076,109510.0,109500.0,0.26489944]
[1758964521768,6.03491929,109510.0,109500.0,0.26489944]
[1758964524142,5.93963929,109510.0,109500.0,0.26489944]
[1758964524354,6.03483929,109510.0,109500.0,0.26489944]
[1758964524594,5.65199929,109510.0,109500.0,0.26489944]
[1758964524816,6.03483929,109510.0,109500.0,0.26489944]
[1758964525245,6.12355076,109510.0,109500.0,0.26489944]
[1758964525661,6.12355076,109510.0,109500.0,0.10119659]
[1758964526064,6.12355076,109510.0,109500.0,0.05619659]
[1758964527231,6.03483929,109510.0,109500.0,0.05619659]
[1758964528142,5.65199929,109510.0,109500.0,0.05619659]
[1758964528361,6.03483929,109510.0,109500.0,0.05619659]
[1758964528580,5.65199929,109510.0,109500.0,0.05619659]
[1758964528801,6.03483929,109510.0,109500.0,0.05619659]
[1758964529460,6.12355076,109510.0,109500.0,0.05619659]
[1758964529662,6.12355563,109510.0,109500.0,0.05619659]
[1758964530020,6.12355563,109510.0,109500.0,1.05619659]
[1758964533483,6.12355563,109510.0,109500.0,1.01119659]
[1758964533695,6.12364097,109510.0,109500.0,1.01119659]
[1758964533914,6.14817097,109510.0,109500.0,1.01119659]
[1758964536757,6.14765981,109510.0,109500.0,1.01119659]
[1758964537484,6.14717583,109510.0,109500.0,1.01119659]
[1758964538321,6.14717583,109510.0,109500.0,1.00605659]
[1758964538549,6.17253194,109510.0,109500.0,1.00605659]
[1758964541097,6.17253194,109510.0,109500.0,0.96105659]
[1758964542991,6.17253257,109510.0,109500.0,0.96105659]
[1758964543225,6.17253257,109510.0,109500.0,0.98395659]
[1758964544068,6.17731062,109510.0,109500.0,0.98395659]
[1758964544466,6.16298117,109510.0,109500.0,0.98395659]
[1758964546864,5.78014117,109510.0,109500.0,0.98395659]
[1758964547067,6.16290443,109510.0,109500.0,0.98395659]
[1758964547466,6.1375493,109510.0,109500.0,0.98920659]
[1758964548000,6.15187879,109510.0,109500.0,0.98920659]
[1758964548478,6.15187879,109510.0,109500.0,0.94420659]
[1758964548693,6.15187879,109510.0,109500.0,0.93895659]
[1758964549210,6.15187879,109510.0,109500.0,0.94101659]
[1758964549406,6.15187879,109510.0,109500.0,0.94420659]
[1758964550486,6.15187879,109510.0,109500.0,0.94077343]
[1758964551152,6.15187906,109510.0,109500.0,0.94077343]
[1758964555417,6.1433196,109510.0,109500.0,0.94077343]
[1758964555654,6.151879,109510.0,109500.0,0.94077343]
[1758964556049,6.151879,109510.0,109500.0,0.89577343]
[1758964557978,5.94986924,109510.0,109500.0,0.89577343]
[1758964559374,5.26047133,109510.0,109500.0,0.89577343]
[1758964559606,5.94982924,109510.0,109500.0,0.89577343]
[1758964561268,5.56710924,109510.0,109500.0,0.89577343]
[1758964561477,5.94982924,109510.0,109500.0,0.89577343]
[1758964563619,5.94982924,109510.0,109500.0,0.85077343]
[1758964566523,5.86111777,109510.0,109500.0,0.85077343]
[1758964567185,5.47839777,109510.0,109500.0,0.85077343]
[1758964567386,5.86111777,109510.0,109500.0,0.85077343]
[1758964571184,5.86111777,109510.0,109500.0,0.80577343]
[1758964571396,5.86111696,109510.0,109500.0,0.80577343]
[1758964571585,5.94982843,109510.0,109500.0,0.80577343]
[1758964572706,6.33311441,109510.0,109500.0,0.80577343]
[1758964578268,6.33311441,109510.0,109500.0,0.80052343]
[1758964578510,6.35846954,109510.0,109500.0,0.80052343]
[1758964578681,6.35846954,109510.0,109500.0,0.75552343]
[1758964579109,6.18627233,109510.0,109500.0,0.75552343]
[1758964579313,5.99097873,109510.0,109500.0,0.75552343]
[1758964579556,6.01846954,109510.0,109500.0,0.75552343]
[1758964580454,6.01846954,109510.0,109500.0,0.75761343]
[1758964580966,6.01846954,109510.0,109500.0,0.76056343]
[1758964581409,6.35846954,109510.0,109500.0,0.76056343]
[1758964583462,6.35846954,109510.0,109500.0,0.75552343]
[1758964584375,6.35846954,109510.0,109500.0,0.75760343]
[1758964585734,6.35846954,109510.0,109500.0,0.76055343]
[1758964586161,6.35846954,109510.0,109500.0,0.71052343]
[1758964593570,6.17583782,109510.0,109500.0,0.66552343]
[1758964593973,6.17583782,109510.0,109500.0,0.66760343]
[1758964593974,6.35846954,109510.0,109500.0,0.66760343]
[1758964594372,6.35846954,109510.0,109500.0,0.66552343]
[1758964594580,6.34991095,109510.0,109500.0,0.66552343]
[1758964595632,6.32455582,109510.0,109500.0,0.66552343]
[1758964597084,6.32455464,109510.0,109500.0,0.66552343]
[1758964601253,6.32455464,109510.0,109500.0,0.62052343]
[1758964608907,6.32455464,109510.0,109500.0,0.57552343]
[1758964609889,6.61011464,109510.0,109500.0,0.57552343]
[1758964610095,6.70531464,109510.0,109500.0,0.57552343]
[1758964610508,5.94183464,109510.0,109500.0,0.57552343]
[1758964610721,6.70531464,109510.0,109500.0,0.57552343]
[1758964616323,6.70531464,109510.0,109500.0,0.53052343]
[1758964616324,5.94183464,109510.0,109500.0,0.53052343]
[1758964616562,6.70527464,109510.0,109500.0,0.53052343]
[1758964618393,6.70527464,109510.0,109500.0,0.53260343]
[1758964621925,6.5022411,109510.0,109500.0,0.53260343]
[1758964623690,6.5022411,109510.0,109500.0,0.48760343]
[1758964624368,6.51657099,109510.0,109500.0,0.48760343]
[1758964625161,6.51657099,109510.0,109500.0,0.48552343]
[1758964627801,6.51657099,109510.0,109500.0,0.49055343]
[1758964629823,6.51657099,109510.0,109500.0,0.48747343]
[1758964630867,6.51657099,109510.0,109500.0,0.48552343]
[1758964631225,6.51657099,109510.0,109500.0,0.44052343]
[1758964631920,6.57207802,109510.0,109500.0,0.44052343]
[1758964632288,6.57751108,109510.0,109500.0,0.44052343]
[1758964632490,5.81407108,109510.0,109500.0,0.44052343]
[1758964632826,6.57681638,109510.0,109500.0,0.44052343]
[1758964634003,6.57681547,109510.0,109500.0,0.44052343]
[1758964634674,5.4301646,109510.0,109500.0,0.44052343]
[1758964635026,6.1935246,109510.0,109500.0,0.44052343]
[1758964635644,6.17919471,109510.0,109500.0,0.44020486]
[1758964635868,5.41583471,109510.0,109500.0,0.44020486]
[1758964636311,6.17919471,109510.0,109500.0,0.44020486]
[1758964636722,5.41583471,109510.0,109500.0,0.44020486]
[1758964636931,6.17919471,109510.0,109500.0,0.44020486]
[1758964637133,5.41583471,109510.0,109500.0,0.44020486]
[1758964637333,6.17919471,109510.0,109500.0,0.44020486]
[1758964638299,6.17919471,109510.0,109500.0,0.44523486]
[1758964638636,6.17919471,109510.0,109500.0,0.40023486]
[1758964638835,5.41583471,109510.0,109500.0,0.40023486]
[1758964639070,6.19352487,109510.0,109500.0,0.39520486]
[1758964639599,6.09832487,109510.0,109500.0,0.39520486]
[1758964639813,6.19352487,109510.0,109500.0,0.39520486]
[1758964640546,6.16816974,109510.0,109500.0,0.39520486]
[1758964640981,6.55019789,109510.0,109500.0,0.39520486]
[1758964641185,6.67363298,109510.0,109500.0,0.39520486]
[1758964641540,6.36695996,109510.0,109500.0,0.39520486]
[1758964641984,6.27577972,109510.0,109500.0,0.39520486]
[1758964642219,6.18706825,109510.0,109500.0,0.39520486]
[1758964642461,6.21456211,109510.0,109500.0,0.39520486]
[1758964643201,6.21756211,109510.0,109500.0,0.39520486]
[1758964643404,6.21756211,109510.0,109500.0,0.39720486]
[1758964646426,6.21756211,109510.0,109500.0,0.40235486]
[1758964646722,6.21756211,109510.0,109500.0,0.35735486]
[1758964646922,6.30627234,109510.0,109500.0,0.35735486]
[1758964647455,6.21756087,109510.0,109500.0,0.35735486]
[1758964648723,6.16877065,109510.0,109500.0,0.35735486]
[1758964651022,5.40541065,109510.0,109500.0,0.35735486]
[1758964651230,6.16877065,109510.0,109500.0,0.35735486]
[1758964653934,6.16877065,109510.0,109500.0,0.31235486]
[1758964654216,6.25748212,109510.0,109500.0,0.31235486]
[1758964655173,6.25106606,109510.0,109500.0,0.31235486]
[1758964655378,5.49412062,109510.0,109500.0,0.31235486]
[1758964655585,6.25102606,109510.0,109500.0,0.31235486]
[1758964655900,6.25744065,109510.0,109500.0,0.31235486]
[1758964656055,5.78132065,109510.0,109500.0,0.31235486]
[1758964656276,6.25102606,109510.0,109500.0,0.31235486]
[1758964656732,5.48770606,109510.0,109500.0,0.31235486]
[1758964656937,6.25110606,109510.0,109500.0,0.31235486]
[1758964657910,5.48770606,109510.0,109500.0,0.31235486]
[1758964658188,6.25110606,109510.0,109500.0,0.31235486]
[1758964658402,5.9812103,109510.0,109500.0,0.31235486]
[1758964658805,5.98121048,109510.0,109500.0,0.31235486]
[1758964659020,5.89249901,109510.0,109500.0,0.31235486]
[1758964660354,6.23249901,109510.0,109500.0,0.31235486]
[1758964661710,6.23249901,109510.0,109500.0,0.30720486]
[1758964662149,6.23249901,109510.0,109500.0,0.31235486]
[1758964662360,6.23249901,109510.0,109500.0,0.26735486]
[1758964662975,5.92582599,109510.0,109500.0,0.26735486]
[1758964663174,6.23249901,109510.0,109500.0,0.26735486]
[1758964663817,6.32121048,109510.0,109500.0,0.26735486]
[1758964664032,6.23249901,109510.0,109500.0,0.26735486]
[1758964664875,6.23249901,109510.0,109500.0,0.21216877]
[1758964668831,6.23188852,109510.0,109500.0,0.21216877]
[1758964669839,6.23188852,109510.0,109500.0,0.16716877]
[1758964670246,6.32059999,109510.0,109500.0,0.16716877]
[1758964674219,6.32055999,109510.0,109500.0,0.17213877]
[1758964674630,5.55719999,109510.0,109500.0,0.17213877]
[1758964674969,6.32055999,109510.0,109500.0,0.17213877]
[1758964675632,5.55719999,109510.0,109500.0,0.17213877]
[1758964676080,6.32047999,109510.0,109500.0,0.17213877]
[1758964676756,5.25052697,109510.0,109500.0,0.17213877]
[1758964676993,6.32047999,109510.0,109500.0,0.17213877]
[1758964677355,6.32047999,109510.0,109500.0,0.12713877]
[1758964679742,5.46848852,109510.0,109500.0,0.12713877]
[1758964679972,6.23176852,109510.0,109500.0,0.12713877]
[1758964684898,6.23176852,109510.0,109500.0,0.08513877]
[1758964687459,6.23177195,109510.0,109500.0,0.08513877]
[1758964688335,6.21744179,109510.0,109500.0,0.08513877]
[1758964689118,6.30615326,109510.0,109500.0,0.08513877]
[1758964690065,6.09156505,109510.0,109500.0,0.08513877]
[1758964690272,6.00285358,109510.0,109500.0,0.08513877]
[1758964691447,6.01718414,109510.0,109500.0,0.08513877]
[1758964692283,6.01718414,109510.0,109500.0,0.04713877]
[1758964692558,5.6267576,109510.0,109500.0,0.04713877]
[1758964695029,6.05355984,109510.0,109500.0,0.04713877]
[1758964695657,6.05355984,109510.0,109500.0,0.04216877]
[1758964696659,6.43687845,109510.0,109500.0,0.04216877]
[1758964698290,6.52558992,109510.0,109500.0,0.04216877]
[1758964698484,6.52558992,109510.0,109500.0,0.04728877]
[1758964699133,6.43687845,109510.0,109500.0,0.04728877]
[1758964700790,5.74688682,109510.0,109500.0,0.04728877]
[1758964700994,6.43687845,109510.0,109500.0,0.01728877]
[1758964702889,6.46223358,109510.0,109500.0,0.01728877]
[1758964706274,6.43687845,109510.0,109500.0,0.01728877]
[1758964706926,6.52558992,109510.0,109500.0,0.01728877]
[1758964707316,6.55094505,109510.0,109500.0,0.01728877]
[1758964708415,6.55094505,109510.0,109500.0,0.00428877]
[1758964708621,6.52558992,109510.0,109500.0,0.00428877]
[1758964708796,6.54810992,109510.0,109500.0,0.00428877]
[1758964709002,6.54811238,109510.0,109500.0,0.00428877]
[1758964709885,0.5226484,109500.0,109490.0,0.05007256]
[1758964710089,5.73098291,109500.0,109490.0,0.05007256]
[1758964710304,5.784802,109500.0,109490.0,0.05222256]
[1758964710553,5.784802,109500.0,109490.0,0.07569256]
[1758964710800,5.81229594,109500.0,109490.0,0.07569256]
[1758964711293,5.81429594,109500.0,109490.0,0.07569256]
[1758964711986,6.26169594,109500.0,109490.0,0.07569256]
[1758964712418,6.26169594,109500.0,109490.0,0.08269256]
[1758964713862,6.05036057,109500.0,109490.0,0.08269256]
[1758964714439,6.23300897,109500.0,109490.0,0.08269256]
[1758964715973,6.23300897,109500.0,109490.0,0.03769256]
[1758964718788,6.20170988,109500.0,109490.0,0.03769256]
[1758964720623,6.29690988,109500.0,109490.0,0.03769256]
[1758964723411,0.52266508,109490.0,109480.0,0.0484511]
[1758964723713,5.50096238,109490.0,109480.0,0.04849768]
[1758964723951,5.52348238,109490.0,109480.0,0.05064768]
[1758964724153,5.53781387,109490.0,109480.0,0.05064768]
[1758964724364,5.56530784,109490.0,109480.0,0.05064768]
[1758964724579,5.65401931,109490.0,109480.0,0.05064768]
[1758964725010,5.56530784,109490.0,109480.0,0.05064768]
[1758964725225,5.79530505,109490.0,109480.0,0.05064768]
[1758964725435,5.79530505,109490.0,109480.0,0.05387768]
[1758964725669,5.79735505,109490.0,109480.0,0.05387768]
[1758964725880,5.79735505,109490.0,109480.0,0.06087768]
[1758964726195,5.79530505,109490.0,109480.0,0.06087768]
[1758964726635,5.88606652,109490.0,109480.0,0.05764768]
[1758964727142,5.88606652,109490.0,109480.0,0.06087768]
[1758964729801,5.88606652,109490.0,109480.0,0.05764768]
[1758964730953,5.88606652,109490.0,109480.0,0.01264768]
[1758964731273,5.88606652,109490.0,109480.0,0.01565768]
[1758964733538,5.88606652,109490.0,109480.0,0.01264768]
[1758964733741,5.88606652,109490.0,109480.0,0.01565768]
[1758964734329,5.65606931,109490.0,109480.0,0.01565768]
[1758964734730,5.65606931,109490.0,109480.0,0.01264768]
[1758964736265,5.68142444,109490.0,109480.0,0.01264768]
[1758964737091,5.65606931,109490.0,109480.0,0.01264768]
[1758964738456,0.98267618,109480.0,109470.0,0.0538022]
[1758964738684,5.59617906,109480.0,109470.0,0.0303322]
[1758964738900,5.61932906,109480.0,109470.0,0.0324822]
[1758964739384,5.65062815,109480.0,109470.0,0.0324822]
[1758964739561,5.67812363,109480.0,109470.0,0.0324822]
[1758964739688,5.67812363,109480.0,109470.0,0.0334822]
[1758964739899,5.67812363,109480.0,109470.0,0.0464822]
[1758964740102,5.64682454,109480.0,109470.0,0.0464822]
[1758964742554,5.55158454,109480.0,109470.0,0.0464822]
[1758964742771,5.64682454,109480.0,109470.0,0.0464822]
[1758964743488,5.64881454,109480.0,109470.0,0.0464822]
[1758964743915,5.64682454,109480.0,109470.0,0.0464822]
[1758964744376,5.73553601,109480.0,109470.0,0.0464822]
[1758964744509,5.64682454,109480.0,109470.0,0.0464822]
[1758964745602,5.18683012,109480.0,109470.0,0.0464822]
[1758964745811,5.64682454,109480.0,109470.0,0.0464822]
[1758964746564,5.64881454,109480.0,109470.0,0.0464822]
[1758964746783,5.73752601,109480.0,109470.0,0.0464822]
[1758964748094,5.28048159,109480.0,109470.0,0.0434722]
[1758964748308,5.74047601,109480.0,109470.0,0.0434722]
[1758964749477,5.64881454,109480.0,109470.0,0.0434722]
[1758964749612,5.65176454,109480.0,109470.0,0.0434722]
[1758964750468,5.64881454,109480.0,109470.0,0.0434722]
[1758964752101,5.65176454,109480.0,109470.0,0.0413222]
[1758964752511,5.88176175,109480.0,109470.0,0.0413222]
[1758964752709,5.65176454,109480.0,109470.0,0.0413222]
[1758964752970,5.74047601,109480.0,109470.0,0.0413222]
[1758964753370,4.80949012,109480.0,109470.0,0.0433422]
[1758964753580,5.65172454,109480.0,109470.0,0.0433422]
[1758964754205,5.65172454,109480.0,109470.0,0.0413222]
[1758964754816,5.42172733,109480.0,109470.0,0.0413222]
[1758964755023,5.65172454,109480.0,109470.0,0.0413222]
[1758964755259,5.74043601,109480.0,109470.0,0.0413222]
[1758964756622,5.89387577,109480.0,109470.0,0.0413222]
[1758964757044,5.89387577,109480.0,109470.0,0.0433422]
[1758964757827,5.51163577,109480.0,109470.0,0.0433422]
[1758964758672,5.89387577,109480.0,109470.0,0.0433422]
[1758964760441,5.79863577,109480.0,109470.0,0.0433422]
[1758964760667,5.89387577,109480.0,109470.0,0.0433422]
[1758964763079,5.89387514,109480.0,109470.0,0.0433422]
[1758964764133,5.51163514,109480.0,109470.0,0.0433422]
[1758964764335,5.89387514,109480.0,109470.0,0.0433422]
[1758964764783,5.58715805,109480.0,109470.0,0.0433422]
[1758964766459,5.49191805,109480.0,109470.0,0.0433422]
[1758964766606,5.58715805,109480.0,109470.0,0.0433422]
[1758964767220,5.58715791,109480.0,109470.0,0.0433422]
[1758964767594,5.893875,109480.0,109470.0,0.0433422]
[1758964769669,5.893835,109480.0,109470.0,0.0433422]
[1758964770106,5.508685,109480.0,109470.0,0.0433422]
[1758964770311,5.890885,109480.0,109470.0,0.0462722]
[1758964770735,5.508685,109480.0,109470.0,0.0462722]
[1758964770887,5.58416791,109480.0,109470.0,0.0462722]
[1758964771545,5.58416745,109480.0,109470.0,0.0462722]
[1758964772593,5.58731745,109480.0,109470.0,0.0433422]
[1758964773354,5.58731745,109480.0,109470.0,0.0413222]
[1758964773938,5.89403454,109480.0,109470.0,0.0413222]
[1758964774486,5.68071775,109480.0,109470.0,0.0413222]
[1758964774696,5.86339951,109480.0,109470.0,0.0413222]
[1758964775944,5.77468804,109480.0,109470.0,0.0413222]
[1758964779310,5.39248804,109480.0,109470.0,0.0413222]
[1758964779729,5.77468804,109480.0,109470.0,0.0413222]
[1758964784460,5.16125386,109480.0,109470.0,0.0413222]
[1758964784662,5.77468804,109480.0,109470.0,0.0413222]
[1758964784996,5.86339951,109480.0,109470.0,0.0413222]
[1758964787061,5.48119951,109480.0,109470.0,0.0433822]
[1758964787236,5.86335951,109480.0,109470.0,0.0433822]